Cogmind - Beta 17 *** ADVENTURER MODE // 2026.07.22 @ 01:56:20 Player: AzzyWazzy Result: Smashed by cave-in Performance ------------- Evolutions (0) 0 Regions Visited (3) 600 Robots Destroyed (29) 145 Value Destroyed (747) 747 Prototype IDs (0) 0 Alien Tech Used (0) 0 Bonus (-127) -127 TOTAL SCORE: 1365 Bonus ------- Friendly Fire -127 Cogmind --------- Core Integrity 0/250 Matter 106/300 Energy 121/125 System Corruption 5% Temperature Cool (2) Movement Core (100) Ox1 Location -10/Subcaves Parts ------- > --- POWER (1) -------- Light Ion Engine > --- PROPULSION (2) --- (None) > --- UTILITY (2) ------ (None) > --- WEAPON (2) ------- Battle Cannon > --- INVENTORY (5) ---- Subdweller Beam Cannon Light Assault Rifle Subdweller Shrapnel Launcher Peak State ------------ > --- POWER ------------ Light Ion Engine > --- PROPULSION ------- Aluminum Leg Aluminum Leg > --- UTILITY ---------- Scrap Suit > --- WEAPON ----------- Subdweller Beam Cannon Battle Cannon > --- INVENTORY -------- Scrap Shield Light Assault Rifle Grenade Launcher [Rating: 15] Favorites ----------- Power Light Ion Engine Engine Light Ion Engine Propulsion Aluminum Leg Leg Aluminum Leg Wheel Wheel Hover Unit Hover Unit Utility Scrap Shield Device Heat Sink Storage Large Storage Unit Protection Scrap Shield Weapon Grenade Launcher Energy Cannon Subdweller Beam Cannon Ballistic Gun Light Assault Rifle Ballistic Cannon Battle Cannon Launcher Grenade Launcher Build | -11 -10 -10 -10 ------- Run | Yrd Mat Min Sub Slots Evolved . | . . . . Power . | . . . . Propulsion . | . . . . Utility . | . . . . Weapon . | . . . . Parts Attached 22 | 7 10 . 5 Power 2 | 1 1 . . Engine 2 | 1 1 . . Core . | . . . . Reactor . | . . . . Propulsion 6 | 2 3 . 1 Treads . | . . . . Leg 3 | 2 . . 1 Wheel 2 | . 2 . . Hover 1 | . 1 . . Flight . | . . . . Utility 7 | 1 4 . 2 Device 3 | 1 1 . 1 Storage 2 | . 2 . . Processor . | . . . . Hackware . | . . . . Protection 2 | . 1 . 1 Artifact . | . . . . Weapon 7 | 3 2 . 2 Energy Gun . | . . . . Energy Cannon 2 | . 1 . 1 Ballistic Gun 3 | 3 . . . Ballistic Cannon 1 | . . . 1 Launcher 1 | . 1 . . Special Weapon . | . . . . Impact Weapon . | . . . . Slashing Weapon . | . . . . Piercing Weapon . | . . . . Special Melee Weapon . | . . . . Unidentified Prototypes . | . . . . Parts Lost 5 | . 1 . 4 Power 1 | . 1 . . Propulsion 2 | . . . 2 Utility 1 | . . . 1 Weapon 1 | . . . 1 Highest Loss Streak 4 | . 1 . 4 To Critical Strikes . | . . . . Average Backups 3 | 2 3 4 2 Power . | . . . . Propulsion . | 1 1 2 . Utility . | . . 1 . Weapon 1 | . 1 1 1 Tool/Special . | . . . . Unused Backups 2 | . . . 2 Power . | . . . . Propulsion 1 | . . . 1 Utility . | . . . . Weapon 1 | . . . 1 Tool/Special . | . . . . Average Slot Usage (%) 89 | . 94 100 85 Engine 13 | . 11 14 14 Leg 20 | . 17 . 25 Wheel 7 | . 10 28 2 Device 5 | . 14 . 2 Storage 3 | . 4 14 1 Protection 10 | . 6 14 10 Energy Cannon 10 | . 5 14 12 Ballistic Gun 2 | . 9 . . Ballistic Cannon 6 | . . . 11 Launcher 7 | . 13 14 4 Peak Build Rating 15 | 6 7 8 15 Average Rating 9 | 3 6 7 11 On Entrance 5 | . 6 7 8 Avg Prop Armor Cover (%) 5 | . 5 . . Naked Turns . | . . . . Heaviest Build 32 | 7 30 30 32 Greatest Support 20 | 20 20 20 20 Greatest Overweight (x) 2 | . 2 1 1 Average Overweight (x) . | . . 1 . Largest Inventory Capacity 15 | 5 15 15 15 Average Capacity 7 | 5 7 15 5 Most Carried 11 | 5 5 7 11 Average Carried 3 | 2 3 4 3 Final Capacity 15 | 5 15 15 5 Final Carried 7 | 3 3 7 3 Scrap Suit Usage (%) 9 | . . . 15 Class Distribution -------------------- 90% | Mutant 9% | Scrapper Dominant Class ---------------- Mutant | -10/Materials Mutant | -10/Mines Mutant | -10/Subcaves Resources | -11 -10 -10 -10 ----------- Run | Yrd Mat Min Sub Matter Collected 755 | 286 115 99 255 Remotely . | . . . . Salvage Created 729 | 45 192 87 405 Parts 47 | 2 13 6 26 Haulers Intercepted 1 | . 1 . . Recyclers Shooed 1 | . 1 . . Parts Field Recycled . | . . . . Retrieved Matter . | . . . . Parts Self-Destructed 11 | . . . 11 Prevented . | . . . . Parts Restored . | . . . . Kills | -11 -10 -10 -10 ------- Run | Yrd Mat Min Sub Combat Hostiles Destroyed 21 | 1 7 2 11 Guns 3 | 1 2 . . Cannons 5 | . . 1 4 AOE 13 | . 5 1 7 Classes Destroyed 8 | 1 5 1 1 Builder 1 | . 1 . . Tunneler 1 | . . 1 . Hauler 1 | . 1 . . Recycler 1 | . 1 . . Watcher 3 | . 3 . . Swarmer 6 | . 6 . . Grunt 4 | 1 1 2 . Subdweller 11 | . . . 11 Thug 1 | . . . 1 Best Kill Streak 5 | 1 5 2 5 Combat Bots Only 5 | 1 3 2 5 Max Kills in Single Turn 4 | 1 3 2 4 Gunslinging . | . . . . Exploded 4 | . 1 1 4 Melee . | . . . . Uniques/NPCs Destroyed . | . . . . Combat | -11 -10 -10 -10 -------- Run | Yrd Mat Min Sub Hostile Shots Fired 36 | 5 22 3 6 Missed 12 | 2 7 2 1 Hits 24 | 3 15 1 5 Projectile 24 | 3 15 1 5 Critical Strikes 1 | . . . 1 Damage Taken 1134 | 24 129 13 968 Core 320 | . 18 . 302 Absorbed by Shields . | . . . . Ignored by Resistances 115 | 9 43 4 59 Core Remaining (%) 100 | 100 . . . Volleys Fired 53 | 4 19 6 24 Largest 2 | 2 2 2 2 Hottest 113 | 40 90 90 113 Shots Fired 99 | 8 33 11 47 Gun 26 | 8 18 . . Cannon 34 | . 1 6 27 Launcher 39 | . 14 5 20 Special . | . . . . Kinetic 47 | 8 18 . 21 Thermal 13 | . 1 6 6 Explosive 39 | . 14 5 20 Electromagnetic . | . . . . Robot Hit Streak 15 | 8 9 5 15 Robot Miss Streak 2 | . 2 . 1 Penetration Max . | . . . . Secondary Targets . | . . . . Shots Hit Robots 48 | 8 20 4 16 Core Hits 43 | 3 19 4 17 Critical Kills . | . . . . Critical Parts Destroyed . | . . . . Critical Strikes 1 | . . . 1 Blast 1 | . . . 1 Melee Attacks . | . . . . Impact . | . . . . Slashing . | . . . . Piercing . | . . . . Sneak Attacks . | . . . . Combat Hostiles . | . . . . Follow-up Attacks . | . . . . Damage Inflicted 1956 | 82 859 122 893 Guns 167 | 82 85 . . Cannons 322 | . . 54 268 Explosions 1460 | . 767 68 625 Melee . | . . . . Ramming 7 | . 7 . . Kinetic 334 | 82 85 . 167 Thermal 155 | . . 54 101 Explosive 1460 | . 767 68 625 Electromagnetic . | . . . . Impact . | . . . . Slashing . | . . . . Piercing . | . . . . Highest Corruption 3 | . . . 3 Average Corruption 3 | . . . 3 Corruption Purged . | . . . . Corruption Blocked . | . . . . Overload Shots . | . . . . Overflow Damage 56 | . 56 . . Projectiles . | . . . . Explosions 56 | . 56 . . Melee . | . . . . Knockbacks . | . . . . Impact . | . . . . Kinetic . | . . . . Secondary . | . . . . Self-Inflicted Damage 120 | . 42 . 78 Shots 7 | . 3 . 4 Rammed 1 | . 1 . . Targets Rammed 1 | . 1 . . Kicked . | . . . . Crushed . | . . . . Highest Temperature 80 | 6 30 80 . Average Temperature 30 | 6 17 35 . Received Heat Transfer 60 | 18 12 9 21 Siege Activations . | . . . . Martial Activations . | . . . . Shielding Activations . | . . . . Robots Disrupted . | . . . . Combat Hostiles . | . . . . Robots Corrupted . | . . . . Combat Hostiles . | . . . . Parts Fried . | . . . . Impact Corruptions . | . . . . Robots Melted . | . . . . Combat Hostiles . | . . . . Parts Melted . | . . . . Heat Transferred 259 | . . 111 148 Parts Sabotaged . | . . . . Parts Stolen . | . . . . Parts Stripped . | . . . . Power Chain Reactions . | . . . . Alert | -11 -10 -10 -10 ------- Run | Yrd Mat Min Sub Maximum Alert Level . | . . . . Low Security (%) 100 | 100 100 100 . Level 1 . | . . . . Level 2 . | . . . . Level 3 . | . . . . Level 4 . | . . . . Level 5 . | . . . . High Security . | . . . . Max Security . | . . . . Peak Influence 173 | 20 173 56 . Initial 10 | . . 10 . Average 48 | 2 73 15 . Influence Increases 390 | 20 295 75 . Destroy 0b10 Robot/C 200 | 20 140 40 . Destroy 0b10 Robot/NC 35 | . 30 5 . Destroy Leader 38 | . 28 10 . Disable Machine 27 | . 27 . . Destroy Structure 90 | . 70 20 . Influence Decreases 390 | 20 263 107 . Entered New Map 22 | . . 22 . Time Decay 358 | 20 253 85 . Lost Part 10 | . 10 . . Squads Dispatched . | . . . . Investigation . | . . . . Extermination . | . . . . Reinforcement . | . . . . Assault . | . . . . Garrison . | . . . . Intercept . | . . . . Searches Triggered . | . . . . Construction Impeded . | . . . . Haulers Reinforced . | . . . . Active Scanning Responses . | . . . . Cargo Convoy Interrupts . | . . . . Stealth | -11 -10 -10 -10 --------- Run | Yrd Mat Min Sub Distress Signals . | . . . . Communications Jammed . | . . . . Distress Signals . | . . . . Times Spotted 26 | 1 10 2 13 Peak Tracking Total 7 | 1 3 2 7 Tactical Retreats . | . . . . Traps | -11 -10 -10 -10 ------- Run | Yrd Mat Min Sub Traps Triggered 5 | . 2 . 3 Indirectly . | . . . . Trap Hack Attempts . | . . . . Triggered . | . . . . Disarmed . | . . . . Reprogrammed . | . . . . Reused . | . . . . Traps Extracted . | . . . . Installed . | . . . . Triggered . | . . . . Machines | -11 -10 -10 -10 ---------- Run | Yrd Mat Min Sub Machines Disabled 3 | . 3 . . Max in Single Turn 1 | . 1 . . Machines Repaired . | . . . . Machines Dismantled . | . . . . Machines Sabotaged . | . . . . Overloaded Fab Kills . | . . . . Hacking | -11 -10 -10 -10 --------- Run | Yrd Mat Min Sub Machines Accessed 1 | . 1 . . Terminals . | . . . . Fabricators . | . . . . Repair Stations . | . . . . Recycling Units 1 | . 1 . . Scanalyzers . | . . . . Garrison Access . | . . . . Total Hacks 4 | . 4 . . Successful 3 | . 3 . . Failed 1 | . 1 . . Catastrophic . | . . . . Database Lockouts . | . . . . Manual . | . . . . Terminals . | . . . . Fabricators . | . . . . Repair Stations . | . . . . Recycling Units 4 | . 4 . . Scanalyzers . | . . . . Garrison Access . | . . . . Terminal Hacks . | . . . . Fabricator Hacks . | . . . . Repair Station Hacks . | . . . . Recycling Unit Hacks 3 | . 3 . . Process 1 | . 1 . . Report Inventory 1 | . 1 . . Retrieve Components 1 | . 1 . . Scanalyzer . | . . . . Garrison Access Hacks . | . . . . Unauthorized Hacks . | . . . . Terminals . | . . . . Fabricators . | . . . . Repair Stations . | . . . . Recycling Units . | . . . . Scanalyzers . | . . . . Garrison Access . | . . . . Data Cores Recovered . | . . . . Used . | . . . . Hacking Detections . | . . . . Full Trace Events . | . . . . Feedback Events . | . . . . Feedback Blocked . | . . . . Robot Schematics Acquired . | . . . . Robots Built . | . . . . Authchips . | . . . . Time . | . . . . Total Robot Build Rating . | . . . . Part Schematics Acquired . | . . . . Parts Built . | . . . . Authchips . | . . . . Time . | . . . . Total Part Build Rating . | . . . . Part Studies Acquired . | . . . . Parts Repaired . | . . . . Time . | . . . . Parts Recycled . | . . . . Recycled Matter . | . . . . Retrieved Matter . | . . . . Retrieved Components 10 | . 10 . . Parts Scanalyzed . | . . . . Part Schematics Acquired . | . . . . Parts Damaged . | . . . . Bothacking | -11 -10 -10 -10 ------------ Run | Yrd Mat Min Sub Used RIF Installer . | . . . . Robots Hacked . | . . . . Non-combat . | . . . . Combat . | . . . . Robot Hacks Applied . | . . . . Relay Couplers Released . | . . . . Fabnet Peak Effective % . | . . . . Robots Rewired . | . . . . Allies Hacked . | . . . . Hacks Repelled . | . . . . Allies | -11 -10 -10 -10 -------- Run | Yrd Mat Min Sub Total Allies . | . . . . Largest Group . | . . . . Highest-Rated Group . | . . . . Highest-Rated Ally . | . . . . Total Orders . | . . . . Ally Attacks . | . . . . Total Damage . | . . . . Kills . | . . . . Allies Corrupted . | . . . . Allies Melted . | . . . . Intel | -11 -10 -10 -10 ------- Run | Yrd Mat Min Sub Active Infowar (turns) 282 | . 282 . . Sensors 282 | . 282 . . Robot Analysis Total . | . . . . Derelict Logs Recovered 1 | . . . 1 Drone Launches . | . . . . Drone Recoveries . | . . . . Exploration | -11 -10 -10 -10 ------------- Run | Yrd Mat Min Sub Turns Passed 2350 | 132 592 264 1362 Spaces Moved 1611 | 119 467 257 768 Core 54 | 54 . . . Treads . | . . . . Legs 981 | 65 238 . 678 Wheels 576 | . 229 257 90 Hover . | . . . . Flight . | . . . . Fastest Speed 50 | 50 80 95 95 Average Speed 131 | 88 108 95 163 Slowest Speed 190 | 120 120 95 190 Overloaded Moves . | . . . . Propulsion Burnouts . | . . . . Robots Hopped . | . . . . Potential Cave-ins 1 | . . . 1 Cave-ins Triggered 2 | . . . 2 Exploration Rate (%) 38 | 7 61 58 27 Regions Visited 3 Branch Regions 2 Pre-discovered Areas . | . . . . Known Exits Taken . | . . . . Unknown Exits Taken 3 | 1 1 1 . Scrap Searched 7 | . . 1 6 Spaces Dug . | . . . . Terrain Destroyed 226 | . 65 35 126 Melee . | . . . . Projectile 6 | . . . 6 AOE 220 | . 65 35 120 Terrain Rammed . | . . . . Walls Destroyed . | . . . . Machines Disabled . | . . . . Actions | -11 -10 -10 -10 --------- Run | Yrd Mat Min Sub Total 1751 | 139 522 265 825 Wait 18 | . 11 . 7 Move 1607 | 118 466 256 767 Hop . | . . . . Pick Up 27 | 9 8 3 7 Fast Attach . | . . . . Attach 12 | 7 3 . 2 Detach 3 | 1 . . 2 Swap 13 | . 8 . 5 Drop 16 | . 6 . 10 Fire 53 | 4 19 6 24 Melee . | . . . . Ram 1 | . 1 . . Kick . | . . . . Crush . | . . . . Escape Stasis . | . . . . Rewire . | . . . . Trap . | . . . . Miscellaneous 1 | . . . 1 Route ------- -11/Scrapyard -10/Materials (discovered 3 exits: [*Mat] / [*Min x2]) -10/Mines -10/Subcaves History --------- Turn | Location | Event 2 | -11/Scrapyard | Met Revision 17 83 | -11/Scrapyard | Discovered new exit (range 8) 133 | -11/Scrapyard | Entered Materials 248 | -10/Materials | Discovered new exit (range 15) 306 | -10/Materials | Build established: Mutant 391 | -10/Materials | Discovered new exit (range 14) 597 | -10/Materials | Discovered new exit (range 13) 725 | -10/Materials | Entered Mines 932 | -10/Mines | Discovered new exit (range 9) 971 | -10/Mines | Found a Scrap Suit stashed away for nefarious purposes 973 | -10/Mines | Found Scrap Suit 989 | -10/Mines | Entered Subcaves 1030 | -10/Subcaves | Learned location of 2 exits from Materials 1046 | -10/Subcaves | Ambushed by swarm of Subdwellers 1249 | -10/Subcaves | Disturbed a concealed Subdweller 1273 | -10/Subcaves | A swath of the cavern ceiling suddenly collapsed 2270 | -10/Subcaves | Ambushed by Subdweller buried in earth 2273 | -10/Subcaves | Ambushed by Subdweller buried in earth 2276 | -10/Subcaves | Ambushed by Subdweller buried in earth 2349 | -10/Subcaves | Crushed by falling debris 2349 | -10/Subcaves | Core integrity fell below 50% 2351 | -10/Subcaves | Crushed by falling debris 2351 | -10/Subcaves | Smashed by cave-in Last Messages --------------- may cause a cave-in, but only if doing so for extended periods. Tunneling a short distance between rooms is safe unless the area was destabilized by an explosion. The unstable cave ceiling collapses. [Achievement: Remodeling] 49-LCE(R): "FREEEEDUMB!" 49-LCE(R) destroyed. The unstable cave ceiling collapses. Crushed by falling debris. [Achievement: Unlikely Earthworm] Grenade Launcher destroyed. System corrupted by crushing effect (+2). Scrap Shield destroyed. System corrupted by crushing effect (+1). The unstable cave ceiling collapses. Crushed by falling debris. Aluminum Leg destroyed. System corrupted by crushing effect (+2). [Achievement: First Step to Greatness] Map ----- +----------------------------------------------------+ | #?????# ##???????????????????? | | ##????## ##??????????????????? | | ####### =%## #??????????????????? | | ]%]!"## ####???????????????? | | #[]%"# # ##??????????????? | | #"%|$# #??????????????? | | # #"%"## #??????????????? | | ## ## ## ##??????????????? | | #### ### ## #???????????????? | | ##??# #### #???????????????? | | ##??## #####?## ##??????????????? | | ##??## #?????# #??????????????? | | ##?## #???### #??????????????? | | #?# ##??# #??????????????? | | ### #?## ##?????????????? | | # #### #?????????????? | | #### ##?????????????? | | # ### # #??????????????? | | # # ## # ##?????????????? | | # ###### # #?????????????? | | ####????## # #?????????????? | | ######### & ###???????????? | | # =%] ### #???????????? | | #" ! # ####????????? | | = ## ! # h #????????? | | #" ##### # = #@ # #???????? | | ##???## # # ! ! #???? | | # # #?????### ## # #???? | | ## ## ###?????##### # &% ##???? | | ?#### ## #?????????# % #???? | | ### ###???????# #??? | | # %= #???????## ## ##??? | | # & % #???????#####?# #???? | | &% % #???##?????????########???? | | = #??# #????????????????????? | | =*## ### "#????????????????????? | | # [%&%#### ## ""##???????????????????? | | # =[##??# "" #???????????????????? | | ##???# ## #?????????????????? | | ##????# ""#?# #????????????????? | | ####????# "" #??#" #???????????????? | | ??????? "" #???## #???????????????? | | ?????# """"" ##???# ##???????????????? | | ######"""""""""##???##????????????????? | | ""######" " #?????????????????????? | | "##??#" " ??????????????????????? | | """####""" ##??????????????????????? | | """"" ##??????????????????????? | | ##?????????????????????? | | ### #?????????????????????? | +----------------------------------------------------+ Best States ------------- Heat Dissipation 35 Energy Generation 10 Energy Capacity 125 Matter Stores 300 Matter Capacity 300 Sight Range 16 Robot Scan Range 14 Terrain Scan Density 10 Armor Coverage 800 Resistance: KI 20 Resistance: TH 20 Resistance: EX 20 Resistance: EM 20 Resistance: I 20 Resistance: S 20 Resistance: P 20 Propulsion Shielding 33 Evasion (%) 55 Offensive Hacking 10 Item Schematics ----------------- None Robot Schematics ------------------ None Fabricated ------------ Nothing Repaired ---------- Nothing Studied --------- None Alien Tech Used ----------------- None Achievements -------------- Backstab Crack Shot Do Not Disturb Dramatic Entrance First Step to Greatness For Emergencies Only I Have A Map? Let's See Who's Tougher Loot Pinata Organ Harvest Remodeling Survival Of The Most Covered Unlikely Earthworm Challenges ------------ None Game ------ Seed TransmissionAuthchipFocus Manual? 0 Play Time 00:25:04 Cumulative 0.4 hours Start 2026.07.22 @ 00:41:05 End 2026.07.22 @ 01:56:20 Sessions 1 Manual Loads 0 Difficulty Adventurer Special Mode None Game No. 1 Rogue 0 Adventurer 1 Explorer 0 Win Type - Total 0 Types 0/0/0/0/0/0/0/0/0/0 Lore% 0 Gallery% 1 Achievement% 2 Wizard Run 0 Options --------- Layout 1 ASCII 1 Keyboard 0 Movement Mouse Keybinds 0 Fullscreen 1 Font 24/Smallcaps Map View 50x35 Zoom Use 0% Tactical HUD 0 Map Filters NONE Filters NONE Steam 1 RUN: c94d0d19-3a83-464d-80df-31903288c629